bitfinex-derivatives/quotes_ETHF0:USTF0_20240830
["timestamp","ask_amount","ask_price","bid_price","bid_amount"]
[1724996083930,0.00596338,2514.1,2513.9,0.39776]
[1724996084432,0.00596338,2514.1,2514.0,0.39775]
[1724996096436,0.00596338,2514.1,2514.0,4.37535]
[1724996096836,0.00596338,2514.1,2514.0,5.76761756]
[1724996097639,2.07320146,2514.7,2514.5,0.39765]
[1724996097942,2.43070146,2514.7,2514.5,0.39765]
[1724996098338,2.43070146,2514.7,2514.4,0.39768]
[1724996099337,2.43070146,2514.7,2514.5,0.3754]
[1724996099841,2.43070146,2514.7,2514.5,0.77307]
[1724996100241,0.3575,2514.7,2514.6,0.39765]
[1724996100443,2.81666484,2514.8,2514.7,0.39764]
[1724996100742,0.00596338,2514.8,2514.7,0.39764]
[1724996101946,3.44596338,2514.8,2514.5,3.5832]
[1724996102138,5.51916484,2514.8,2514.5,3.5832]
[1724996102534,5.91679484,2514.8,2514.5,3.5832]
[1724996102842,3.44596338,2514.8,2514.5,3.2078]
[1724996103642,5.91679484,2514.8,2514.5,3.2078]
[1724996103847,3.44,2514.6,2514.3,0.00596338]
[1724996104142,1.0974,2514.5,2514.3,0.00596338]
[1724996104343,1.49508,2514.5,2514.3,0.00596338]
[1724996104546,5.47188,2514.5,2514.3,0.00596338]
[1724996105739,1.49508,2514.5,2514.3,0.00596338]
[1724996105938,5.47188,2514.5,2514.3,0.00596338]
[1724996107249,5.0742,2514.5,2514.3,0.00596338]
[1724996107645,1.49507,2514.5,2514.3,0.00596338]
[1724996107846,7.54507146,2514.5,2514.3,0.00596338]
[1724996108845,0.39768,2514.4,2514.3,0.00596338]
[1724996109052,6.44768146,2514.4,2514.3,0.00596338]
[1724996109248,4.37448,2514.4,2514.3,0.00596338]
[1724996111159,6.96544264,2514.4,2514.3,0.00596338]
[1724996111654,4.37448,2514.4,2514.3,0.00596338]
[1724996112465,6.96544264,2514.4,2514.3,0.00596338]
[1724996112668,4.37448,2514.4,2514.3,0.00596338]
[1724996113263,6.96544264,2514.4,2514.3,0.00596338]
[1724996113969,4.37448,2514.4,2514.3,0.00596338]
[1724996114361,0.39768,2514.4,2514.3,0.00596338]
[1724996116066,2.98864264,2514.4,2514.3,0.00596338]
[1724996116467,0.39768,2514.4,2514.3,0.00596338]
[1724996116674,2.98864264,2514.4,2514.3,0.00596338]
[1724996116874,0.39768,2514.4,2514.3,0.00596338]
[1724996117072,2.98864264,2514.4,2514.3,0.00596338]
[1724996117670,0.39768,2514.4,2514.3,0.00596338]
[1724996120173,2.98864264,2514.4,2514.3,0.00596338]
[1724996120475,2.59096264,2514.4,2514.3,0.00596338]
[1724996120872,2.59096264,2514.5,2514.4,0.39768]
[1724996121175,2.59096264,2514.5,2514.4,1.15608]
[1724996121368,2.59096264,2514.6,2514.5,0.39767]
[1724996121874,2.59096264,2514.6,2514.4,1.15607]
[1724996122966,2.59096264,2514.6,2514.5,0.39767]
[1724996124669,2.59096264,2514.6,2514.4,0.7584]
[1724996124670,6.77092602,2514.8,2514.7,0.39764]
[1724996124871,6.77092602,2514.8,2514.6,0.39765]
[1724996125175,6.77092602,2514.8,2514.7,0.39764]
[1724996125373,6.7740308,2514.8,2514.7,0.39764]
[1724996125764,6.7740308,2514.8,2514.6,0.39765]
[1724996125973,2.07497688,2514.7,2514.6,0.39765]
[1724996126170,6.7740308,2514.8,2514.6,0.39765]
[1724996126573,6.7740308,2514.8,2514.7,0.39764]
[1724996126872,4.17996338,2514.8,2514.7,0.39764]
[1724996127075,2.0809656,2514.8,2514.7,0.39764]
[1724996128182,0.00596338,2514.8,2514.7,0.39764]
[1724996128769,0.00596338,2514.8,2514.6,0.39764]
[1724996128969,0.00596338,2514.8,2514.7,0.39764]
[1724996132870,0.00596338,2514.8,2514.7,1.82764]
[1724996135174,0.00596338,2514.8,2514.6,1.78962752]
[1724996135381,0.00596338,2514.8,2514.5,1.82766]
[1724996135774,0.36776338,2514.8,2514.5,1.43]
[1724996137474,0.36776338,2514.8,2514.5,1.82766]
[1724996137984,0.36776338,2514.8,2514.5,1.43]
[1724996141086,0.36776338,2514.8,2514.5,1.82766]
[1724996141384,0.00596338,2514.8,2514.5,1.82766]
[1724996141782,0.00596338,2514.8,2514.7,1.43]
[1724996143577,0.00596338,2514.8,2514.7,1.82764]
[1724996144787,0.00596338,2514.8,2514.7,5.80444]
[1724996150488,2.81750222,2515.2,2515.0,0.39758]
[1724996150489,0.3885,2515.2,2515.0,0.39758]
[1724996150690,0.3885,2515.2,2515.1,0.7388]
[1724996151078,2.45390222,2515.4,2515.1,0.7388]
[1724996151079,2.45390222,2515.4,2515.2,0.39756]
[1724996151289,0.3789,2515.4,2515.1,1.13637]
[1724996151583,2.0809656,2515.5,2515.2,1.43]
[1724996151794,0.00596338,2515.5,2515.3,0.39753]
[1724996151984,0.00596338,2515.5,2515.3,4.76013]
[1724996152182,0.00596338,2515.5,2515.3,3.9752]
[1724996152579,0.00596338,2515.5,2515.2,1.82755]
[1724996153389,2.0809656,2515.5,2515.1,0.3812]
[1724996153578,1.43,2515.4,2515.0,3.2078]
[1724996153777,0.7696,2515.3,2515.0,3.2078]
[1724996153987,0.7696,2515.3,2515.0,4.6378]
[1724996154996,1.16714,2515.3,2515.0,1.43]
[1724996155576,0.39756,2515.2,2514.9,0.3572]
[1724996155781,1.16715,2515.3,2514.9,0.3572]
[1724996156084,0.39758,2515.1,2514.9,0.3572]
[1724996156280,1.43,2515.1,2514.6,4.59970609]
[1724996156588,0.3702,2515.0,2514.6,6.02970609]
[1724996156786,0.3702,2515.0,2514.8,1.43]
[1724996158192,0.3702,2515.0,2514.6,4.6378]
[1724996159891,0.76779,2515.0,2514.6,4.6378]
[1724996160087,0.39762,2514.9,2514.6,3.2078]
[1724996160286,1.11733,2514.8,2514.6,3.2078]
[1724996161083,1.11732,2514.8,2514.6,3.2078]
[1724996161386,1.11732,2514.8,2514.5,1.7821]
[1724996161689,0.7197,2514.8,2514.5,1.43]
[1724996161987,0.39764,2514.7,2514.5,1.43]
[1724996162490,0.3802,2514.6,2514.5,1.43]
[1724996165293,0.77785,2514.6,2514.4,0.3656]
[1724996165503,2.45520222,2514.6,2514.3,1.43596338]
[1724996165683,0.3802,2514.6,2514.4,0.3542]
[1724996165986,2.45520222,2514.6,2514.4,0.3542]
[1724996170087,2.45520222,2514.6,2514.5,1.43]
[1724996170278,2.07500222,2514.7,2514.5,1.43]
[1724996170578,2.43340222,2514.7,2514.5,1.43]
[1724996171990,2.43340222,2514.7,2514.5,1.82766]
[1724996172191,2.43340222,2514.7,2514.5,2.18836]
[1724996172587,2.43340222,2514.7,2514.5,1.7907]
[1724996174102,2.43340222,2514.7,2514.5,2.18837]
[1724996174398,2.07500222,2514.7,2514.6,1.82765]
[1724996174594,2.79470222,2514.8,2514.6,1.82765]
[1724996179401,2.79470222,2514.8,2514.6,5.03545]
[1724996179597,2.07500222,2514.9,2514.8,0.39762]
[1724996179898,2.07500222,2515.0,2514.9,0.3976]
[1724996180095,5.28280222,2515.1,2514.9,0.3703]
[1724996180296,5.28280222,2515.1,2514.9,0.7361]
[1724996181595,5.28280222,2515.1,2514.9,1.1337]
[1724996181796,7.01480222,2515.2,2515.0,1.82759]
[1724996182201,4.9398,2515.2,2515.0,1.82759]
[1724996184499,4.9398,2515.2,2515.0,1.43]
[1724996185210,0.7658,2515.2,2515.0,1.43]
[1724996185706,0.7658,2515.2,2515.0,1.82759]
[1724996190205,0.7658,2515.2,2515.1,3.2078]
[1724996194110,0.7658,2515.2,2515.0,1.82759]
[1724996194306,0.7658,2515.2,2515.1,3.60537]
[1724996194513,0.7658,2515.2,2515.1,4.6378]
[1724996197521,0.7658,2515.2,2515.1,5.03537]
[1724996197813,2.07500222,2515.4,2515.3,0.39754]
[1724996198001,0.00596338,2515.5,2515.3,1.82754]
[1724996198205,0.00596338,2515.5,2515.4,3.2078]
[1724996198620,0.00596338,2515.5,2515.4,3.60533]
[1724996199204,0.00596338,2515.5,2515.4,7.95503]
[1724996200909,0.00596338,2515.5,2515.4,3.2078]
[1724996201309,3.98116338,2515.5,2515.4,3.2078]
[1724996203101,0.00596338,2515.5,2515.4,3.2078]
[1724996204611,0.00596338,2515.5,2515.4,3.60533]
[1724996205002,0.00596338,2515.5,2515.4,3.98003]
[1724996205410,0.00596338,2515.5,2515.4,4.33613]
[1724996206516,0.00596338,2515.5,2515.4,3.98003]
[1724996209019,0.00596338,2515.5,2515.4,7.95523]
[1724996209723,2.07500222,2516.1,2515.4,13.5577]
[1724996210014,2.84060222,2516.2,2516.0,1.43]
[1724996210220,0.7656,2516.2,2515.9,1.43]
[1724996210408,0.39743,2516.0,2515.8,3.2078]
[1724996210607,0.3846,2515.9,2515.8,3.2078]
[1724996210821,2.8465656,2516.2,2515.8,4.6378]
[1724996211013,2.8465656,2516.2,2516.0,1.43]
[1724996211014,0.77156338,2516.2,2516.0,1.43]
[1724996211509,0.77156338,2516.2,2516.1,0.3536]
[1724996211912,4.74596338,2516.2,2516.1,0.3536]
[1724996212225,0.77156338,2516.2,2516.1,0.3536]
[1724996215307,0.77156338,2516.2,2516.1,1.7836]
[1724996215522,0.00596338,2516.2,2516.1,2.18102]
[1724996215823,0.00596338,2516.2,2516.1,5.38882]
[1724996216013,0.00596338,2516.2,2516.1,9.36322]
[1724996216213,3.9298,2516.7,2516.5,0.39734]
[1724996216415,3.9298,2516.7,2516.6,0.3763]
[1724996216917,4.6956,2516.7,2516.6,0.3763]
[1724996217119,4.6956,2516.7,2516.6,3.5841]
[1724996217418,4.6956,2516.7,2516.6,0.3763]
[1724996217721,4.6956,2516.7,2516.5,1.43]
[1724996217923,0.3622,2516.6,2516.5,1.43]
[1724996218922,0.722,2516.7,2516.5,1.43]
[1724996219228,0.3799,2516.8,2516.5,1.82735]
[1724996219529,0.3799,2516.8,2516.7,1.43]
[1724996222321,0.3634552,2516.9,2516.7,1.43]
[1724996222927,0.3634552,2516.9,2516.8,0.3707]
[1724996224126,0.3634552,2516.9,2516.7,1.43]
[1724996224531,4.7343552,2516.9,2516.5,0.3707]
[1724996224827,0.3634552,2516.9,2516.6,1.43]
[1724996225221,0.7607552,2516.9,2516.6,1.43]
[1724996226223,0.39731,2516.8,2516.6,1.43]
[1724996226626,4.37091,2516.8,2516.6,1.43]
[1724996228522,3.9736,2516.8,2516.6,1.43]
[1724996228721,0.7607552,2516.9,2516.7,1.43]
[1724996229730,0.0039552,2516.9,2516.7,1.43]
[1724996229924,0.0039552,2516.9,2516.8,0.7425]
[1724996230132,0.0039552,2516.9,2516.8,0.3686]
[1724996230528,0.0039552,2516.9,2516.7,1.43]
[1724996230729,0.0039552,2516.9,2516.7,1.7986]
[1724996231520,0.39731,2516.8,2516.7,1.43]
[1724996231723,0.39731,2516.8,2516.6,4.6378]
[1724996231919,0.3788,2516.7,2516.6,4.6378]
[1724996233627,0.3788,2516.7,2516.6,4.9972]
[1724996234233,0.77612,2516.7,2516.6,4.6378]
[1724996234731,0.3788,2516.7,2516.6,4.6378]
[1724996234936,0.77612,2516.7,2516.6,4.6378]
[1724996237232,0.77612,2516.7,2516.6,1.43]
[1724996237431,4.3524,2516.7,2516.3,3.2078]
[1724996237636,3.2078,2516.5,2516.1,1.7944]
[1724996237835,0.3974,2516.2,2516.1,1.7944]
[1724996238235,0.39739,2516.3,2516.1,1.7944]
[1724996238431,0.3742,2516.2,2516.1,0.3644]
[1724996238632,0.39739,2516.3,2516.1,1.7944]
[1724996238837,0.39741,2516.2,2516.1,1.43]
[1724996239134,1.15801,2516.2,2516.1,1.43]
[1724996239334,5.13241,2516.2,2516.1,1.43]
[1724996240033,0.7606,2516.2,2516.0,3.43]
[1724996240235,0.39739,2516.3,2516.0,3.43]
[1724996240432,0.39739,2516.3,2516.2,3.43]
[1724996241433,0.3742,2516.4,2516.2,3.43]
[1724996241434,0.77158,2516.4,2516.2,3.43]
[1724996242035,0.3742,2516.4,2516.2,3.43]
[1724996242638,0.3844,2516.5,2516.2,3.43]
[1724996242839,4.561,2516.6,2516.4,3.82736]
[1724996243540,4.561,2516.6,2516.4,3.43]
[1724996243733,4.561,2516.6,2516.4,3.82737]
[1724996244533,0.387,2516.6,2516.5,0.39735]
[1724996244737,0.0039552,2516.9,2516.5,0.39735]
[1724996245044,0.0039552,2516.9,2516.6,3.43]
[1724996245345,0.4012452,2516.9,2516.6,3.43]
[1724996245539,0.4012452,2516.9,2516.7,0.3868]
[1724996245737,0.4012452,2516.9,2516.7,0.7691]
[1724996246244,0.4012452,2516.9,2516.6,3.2078]
[1724996247647,0.0039552,2516.9,2516.6,3.60513]
[1724996247840,0.0039552,2516.9,2516.7,0.3683]
[1724996248333,0.0039552,2516.9,2516.8,0.7332]
[1724996248539,0.0039552,2516.9,2516.8,4.56051]
[1724996250250,0.0039552,2516.9,2516.8,4.1632]
[1724996250641,0.0039552,2516.9,2516.8,4.56051]
[1724996251039,0.0039552,2516.9,2516.8,4.1632]
[1724996251346,0.0039552,2516.9,2516.8,0.7332]
[1724996253046,0.0039552,2516.9,2516.8,1.13051]
[1724996253347,0.0039552,2516.9,2516.8,0.7332]
[1724996253947,0.4012452,2516.9,2516.8,0.7332]
[1724996254148,0.4012452,2516.9,2516.6,3.2078]
[1724996254149,6.05255742,2516.9,2516.6,3.2078]
[1724996254349,3.2078,2516.7,2516.3,3.5599]
[1724996254545,0.39735,2516.5,2516.3,3.5599]
[1724996254741,0.39737,2516.4,2516.3,3.5599]
[1724996255039,0.3569,2516.4,2516.3,4.95082564]
[1724996255444,0.75427,2516.4,2516.3,3.5599]
[1724996256239,2.82927222,2516.4,2516.3,3.5599]
[1724996258549,2.43190222,2516.4,2516.3,3.5599]
[1724996258942,4.66906964,2516.5,2516.3,3.5599]
[1724996259155,2.07500222,2516.5,2516.3,3.5599]
[1724996260239,2.07500222,2516.4,2516.3,3.5599]
[1724996261547,2.07500222,2516.4,2516.3,3.95728]
[1724996262451,2.07500222,2516.4,2516.3,3.5599]
[1724996262656,2.07500222,2516.5,2516.3,4.34388]
[1724996262855,2.07500222,2516.5,2516.4,3.82737]
[1724996263064,2.07500222,2516.6,2516.5,0.39735]
[1724996263351,2.07500222,2516.6,2516.5,0.76155]
[1724996263769,2.07500222,2516.6,2516.5,0.3642]
[1724996264650,2.07500222,2516.6,2516.5,0.76155]
[1724996264849,2.07500222,2516.6,2516.5,4.73515]
[1724996265048,0.3828552,2516.9,2516.6,0.39734]
[1724996265049,2.07500222,2516.7,2516.6,0.39734]
[1724996265355,2.07500222,2516.8,2516.7,0.39732]
[1724996265752,2.08041152,2516.9,2516.8,0.39731]
[1724996266053,2.08041152,2516.9,2516.6,7.03513]
[1724996266955,2.07645632,2516.8,2516.6,3.2078]
[1724996267153,2.45565632,2516.8,2516.6,3.2078]
[1724996267848,0.39732,2516.7,2516.6,3.2078]
[1724996268957,6.44737632,2516.7,2516.6,3.2078]
[1724996269259,0.39735,2516.5,2516.3,4.59886703]
[1724996269446,0.39735,2516.5,2516.3,3.2078]
[1724996269959,2.47358426,2516.4,2516.3,3.2078]
[1724996270162,2.84658426,2516.4,2516.3,3.2078]
[1724996272661,6.82098426,2516.4,2516.3,3.2078]
[1724996275866,0.39738,2516.3,2516.2,3.43]
[1724996276069,0.39738,2516.3,2516.2,1.43]
[1724996276465,0.3974,2516.2,2516.1,4.6378]
[1724996276861,0.3974,2516.2,2516.1,3.2078]
[1724996277062,2.47361426,2516.2,2516.1,3.2078]
[1724996278371,0.39742,2516.1,2515.9,3.43]
[1724996279857,2.07621426,2516.2,2516.0,0.39743]
[1724996280061,2.07621426,2516.2,2516.1,3.43]
[1724996280257,2.47360426,2516.3,2516.1,3.43]
[1724996280473,2.07621426,2516.3,2516.2,0.3699]
[1724996280971,2.07621426,2516.3,2516.2,0.7576]
[1724996280972,2.47359426,2516.3,2516.2,0.7576]
[1724996281574,2.07621426,2516.3,2516.2,0.7576]
[1724996283580,2.07621426,2516.4,2516.3,0.39738]
[1724996283781,2.07621426,2516.4,2516.3,3.82738]
[1724996284085,6.76806742,2516.6,2516.3,7.80178]
[1724996284086,2.07621426,2516.5,2516.3,7.80178]
[1724996284279,2.07621426,2516.5,2516.3,3.43]
[1724996284682,2.07621426,2516.4,2516.3,3.43]
[1724996285079,2.07621426,2516.5,2516.3,7.80178]
[1724996285278,2.07621426,2516.5,2516.3,3.82738]
[1724996286395,2.07621426,2516.5,2516.4,0.39737]
[1724996286590,2.07621426,2516.5,2516.3,3.82737]
[1724996288791,2.07621426,2516.5,2516.3,3.82738]
[1724996289186,2.07621426,2516.5,2516.4,0.39737]
[1724996289384,2.07621426,2516.6,2516.4,0.39737]
[1724996289588,2.07621426,2516.5,2516.4,0.39737]
[1724996290093,2.07621426,2516.6,2516.4,0.39737]
[1724996290485,2.07621426,2516.6,2516.5,0.39735]
[1724996292195,2.07621426,2516.6,2516.4,3.60516]
[1724996292799,2.07621426,2516.6,2516.5,0.39735]
[1724996294191,2.07621426,2516.6,2516.5,7.80095]
[1724996294489,2.07621426,2516.8,2516.6,0.39734]
[1724996294695,2.07621426,2516.8,2516.6,0.3743]
[1724996294893,0.365,2516.7,2516.6,0.3743]
[1724996295292,0.365,2516.7,2516.6,0.7409]
[1724996295486,2.43321426,2516.8,2516.6,1.13824]
[1724996295487,2.07621426,2516.8,2516.6,1.13824]
[1724996295687,2.08016946,2516.9,2516.7,0.39732]
[1724996295889,2.08016946,2516.9,2516.7,3.82732]
[1724996296089,2.08016946,2516.9,2516.8,0.39731]
[1724996296696,2.08016946,2516.9,2516.7,3.82731]
[1724996297195,2.08016946,2516.9,2516.8,0.39731]
[1724996298089,0.0039552,2516.9,2516.8,0.39731]
[1724996299697,2.07621426,2517.2,2517.1,0.39726]
[1724996299991,2.07621426,2517.4,2517.3,0.39723]
[1724996300191,2.07621426,2517.5,2517.3,1.82723]
[1724996300396,2.07621426,2517.6,2517.4,3.2078]
[1724996300699,2.07621426,2517.9,2517.7,0.39716]
[1724996300891,2.07606548,2517.9,2517.8,2.1922]
[1724996301195,2.07606548,2518.0,2517.9,0.39713]
[1724996301389,2.07606548,2518.0,2517.8,2.1922]
[1724996301390,2.46076548,2518.1,2517.8,2.58934]
[1724996302294,0.3847,2518.1,2517.9,0.39713]
[1724996302493,0.3847,2518.1,2517.8,2.58934]
[1724996302686,0.3847,2518.1,2517.8,0.3748]
[1724996302894,0.3847,2518.1,2517.8,1.43]
[1724996303093,0.39712,2518.0,2517.7,3.2078]
[1724996303295,0.3696,2517.9,2517.7,3.2078]
[1724996305096,0.76674,2517.9,2517.7,3.2078]
[1724996305396,4.73874,2517.9,2517.7,3.2078]
[1724996306592,0.39715,2517.8,2517.7,3.2078]
[1724996306799,0.39715,2517.8,2517.3,3.43]
[1724996306800,0.39719,2517.6,2517.3,3.43]
[1724996307197,0.3601,2517.5,2517.4,0.3834]
[1724996307409,4.5436,2517.9,2517.4,3.8134]
[1724996307591,0.3601,2517.8,2517.4,4.2106]
[1724996308201,0.3601,2517.8,2517.5,3.60498]
[1724996308401,0.3601,2517.8,2517.6,0.3562]
[1724996309104,0.3601,2517.8,2517.6,0.75338]
[1724996309598,0.3601,2517.8,2517.6,0.3562]
[1724996311399,0.7406,2517.9,2517.7,3.82716]
[1724996311803,0.7406,2517.9,2517.8,0.3663]
[1724996312001,0.3848,2518.0,2517.8,0.3663]
[1724996312203,0.3848,2518.0,2517.8,0.76345]
[1724996312604,4.174,2518.6,2517.9,7.7893]
[1724996312806,4.57102,2518.6,2518.2,3.43]
[1724996313309,4.57102,2518.6,2518.3,0.372]
[1724996313909,4.174,2518.6,2518.4,3.43]
[1724996316008,1.13891,2518.7,2518.4,3.43]
[1724996317498,0.7419,2518.7,2518.4,3.43]
[1724996320313,0.7419,2518.7,2518.4,3.82705]
[1724996321013,0.39711,2518.1,2517.8,3.2078]
[1724996321316,0.39706,2518.4,2518.0,0.39711]
[1724996321512,0.365,2518.3,2518.0,0.39711]
[1724996321713,0.365,2518.3,2517.8,3.40405247]
[1724996321714,0.365,2518.3,2518.1,4.2134]
[1724996321907,0.365,2518.3,2518.1,3.8163]
[1724996322426,0.76207,2518.3,2517.9,3.43]
[1724996322607,0.3771,2518.2,2517.9,3.43]
[1724996322815,0.3771,2518.2,2517.8,3.2078]
[1724996322816,0.39711,2518.1,2517.8,3.2078]
[1724996323209,0.7517,2518.2,2517.9,3.43]
[1724996323511,0.7517,2518.2,2517.9,4.18923]
[1724996323706,1.14879,2518.2,2517.9,3.7921]
[1724996323907,0.7517,2518.2,2517.9,3.7921]
[1724996324221,0.7517,2518.2,2517.9,4.18922]
[1724996324406,0.7517,2518.2,2518.0,0.39711]
[1724996325212,0.7517,2518.2,2517.9,4.18922]
[1724996328314,0.7517,2518.2,2517.9,3.7921]
[1724996328516,0.39711,2518.1,2517.8,3.2078]
[1724996328917,1.14879,2518.2,2517.8,3.2078]
[1724996329423,0.3971,2518.1,2517.8,3.2078]
[1724996330325,0.39712,2518.0,2517.8,3.2078]
[1724996330920,0.39711,2518.1,2517.8,3.2078]
[1724996332231,0.7517,2518.2,2517.8,3.60495]
[1724996332232,1.14879,2518.2,2517.8,3.60495]
[1724996332633,0.7517,2518.2,2517.8,3.2078]
[1724996332936,1.14879,2518.2,2517.9,3.43]
[1724996333132,1.14879,2518.2,2518.0,0.3569]
[1724996333435,0.7517,2518.2,2518.0,0.3569]
[1724996333637,0.7517,2518.2,2518.1,0.3866]
[1724996333833,1.14878,2518.2,2518.1,0.3866]
[1724996334034,5.11998,2518.2,2518.1,0.3866]
[1724996334430,0.39711,2518.1,2517.9,3.43]
[1724996334627,0.39711,2518.1,2517.9,3.8166]
[1724996335342,0.39712,2518.0,2517.9,0.3866]
[1724996337443,0.39716,2517.7,2517.6,3.43]
[1724996337638,0.39716,2517.8,2517.6,3.43]
[1724996337843,0.39716,2517.7,2517.6,3.43]
[1724996338037,0.75406,2517.8,2517.6,7.402]
[1724996338249,0.75406,2517.8,2517.6,3.43]
[1724996338656,0.75406,2517.8,2517.7,0.371]
[1724996339151,0.39719,2517.6,2517.4,6.6378]
[1724996339550,0.3659,2517.5,2517.4,6.6378]
[1724996340141,0.3659,2517.5,2517.4,3.2078]
[1724996340142,0.76309,2517.5,2517.4,3.2078]
[1724996341238,0.3659,2517.5,2517.4,3.2078]
[1724996341439,0.3659,2517.5,2517.4,6.6378]
[1724996341638,0.76309,2517.5,2517.4,6.6378]
[1724996342657,0.76309,2517.5,2517.4,3.2078]
[1724996343152,0.3659,2517.5,2517.4,3.2078]
[1724996343450,0.39719,2517.6,2517.4,3.2078]
[1724996343648,2.07606548,2517.7,2517.5,0.39718]
[1724996343841,3.5647,2517.8,2517.5,0.39718]
[1724996343842,3.2078,2517.8,2517.6,4.21288]
[1724996344045,6.25006548,2517.9,2517.6,4.21288]
[1724996344250,6.25006548,2517.9,2517.7,0.3846]
[1724996344549,4.174,2517.9,2517.7,0.3846]
[1724996344753,4.57113,2517.9,2517.7,0.3846]
[1724996345138,0.39715,2517.8,2517.7,0.3846]
[1724996345549,4.57114,2517.9,2517.7,0.3846]
[1724996345753,4.174,2517.9,2517.7,0.3846]
[1724996346552,4.174,2517.9,2517.7,0.78175]
[1724996347542,4.57113,2517.9,2517.7,0.3846]
[1724996347951,4.95583,2517.9,2517.7,0.3846]
[1724996348150,4.5587,2517.9,2517.7,0.3846]
[1724996348755,0.3847,2517.9,2517.7,0.3846]
[1724996349748,0.78183,2517.9,2517.7,0.3846]
[1724996350051,0.3847,2517.9,2517.7,0.3846]
[1724996350252,0.78183,2517.9,2517.7,0.3846]
[1724996350656,0.3847,2517.9,2517.7,0.3846]
[1724996350855,2.85036548,2517.9,2517.7,0.3846]
[1724996351064,0.39715,2517.8,2517.7,0.3846]
[1724996351955,6.04806548,2517.8,2517.4,3.2078]
[1724996352160,0.39721,2517.4,2517.3,0.3607]
[1724996352455,3.06901548,2517.6,2517.2,0.00596338]
[1724996352456,0.39723,2517.3,2517.2,0.00596338]
[1724996352659,0.75333,2517.3,2517.2,0.00596338]
[1724996352853,6.80219548,2517.3,2517.2,0.00596338]
[1724996353054,7.32019742,2517.3,2517.2,0.00596338]
[1724996353450,4.72613,2517.3,2517.2,0.00596338]
[1724996353656,7.32019742,2517.3,2517.2,0.00596338]
[1724996353859,5.7192,2517.3,2517.2,0.00596338]
[1724996354050,8.31003643,2517.3,2517.2,0.00596338]
[1724996354262,0.39731,2516.8,2516.7,0.7194]
[1724996354564,0.39732,2516.7,2516.6,3.2078]
[1724996355853,0.39731,2516.8,2516.6,3.2078]
[1724996357154,0.39732,2516.7,2516.6,3.2078]
[1724996357355,0.39732,2516.8,2516.6,3.2078]
[1724996358556,0.78876338,2516.9,2516.6,3.2078]
[1724996358758,0.40326338,2516.9,2516.6,3.2078]
[1724996359671,0.00596338,2516.9,2516.6,3.2078]
[1724996359858,0.40326338,2516.9,2516.6,3.2078]
[1724996360768,0.39731,2516.8,2516.6,3.2078]
[1724996361867,0.40326338,2516.9,2516.6,3.2078]
[1724996362162,0.40326338,2516.9,2516.5,3.43]
[1724996362163,0.40326338,2516.9,2516.5,3.82735]
[1724996362361,0.40326338,2516.9,2516.6,0.39733]
[1724996362663,0.00596338,2516.9,2516.6,0.39733]
[1724996363559,0.00596338,2516.9,2516.7,0.39731]
[1724996363964,0.00596338,2516.9,2516.8,0.3722]
[1724996365268,0.40325338,2516.9,2516.8,0.3722]
[1724996365670,0.00596338,2516.9,2516.8,0.3722]
[1724996366258,0.40325338,2516.9,2516.8,0.3722]
[1724996367366,0.39731,2516.8,2516.6,40.8]
[1724996367663,0.39732,2516.7,2516.5,0.3856]
[1724996368665,1.13651,2516.8,2516.5,0.3856]
[1724996369869,0.39732,2516.7,2516.5,0.3856]
[1724996372563,1.13651,2516.8,2516.5,0.78295]
[1724996375569,0.7392,2516.8,2516.5,0.78295]
[1724996375875,0.40326338,2516.9,2516.5,3.8156]
[1724996376065,0.40326338,2516.9,2516.6,0.39733]
[1724996376372,0.40326338,2516.9,2516.6,41.19733]
[1724996376568,0.40326338,2516.9,2516.6,40.8]
[1724996377374,0.00596338,2516.9,2516.5,0.3856]
[1724996377574,0.39734,2516.6,2516.5,0.3856]
[1724996379680,0.39733,2516.7,2516.5,0.3856]
[1724996380486,0.39734,2516.6,2516.5,0.3856]
[1724996382784,0.39734,2516.6,2516.4,0.00596338]
[1724996382785,0.39735,2516.5,2516.4,0.00596338]
[1724996383084,5.77205,2516.5,2516.4,0.00596338]
[1724996383393,0.7369,2516.5,2516.4,0.00596338]
[1724996385076,1.13425,2516.5,2516.4,0.37336338]
[1724996386375,0.7369,2516.5,2516.4,0.37336338]
[1724996386584,7.7617,2516.8,2516.4,0.37336338]
[1724996387383,0.39735,2516.5,2516.4,0.37336338]
[1724996387882,9.83426453,2516.8,2516.4,0.37336338]
[1724996387883,0.39734,2516.6,2516.4,0.37336338]
[1724996388979,0.39735,2516.5,2516.4,0.37336338]
[1724996390089,0.39735,2516.5,2516.4,0.00596338]
[1724996390777,3.60515,2516.5,2516.4,0.00596338]
[1724996392693,8.57214,2516.5,2516.4,0.00596338]
[1724996394383,10.64470453,2516.5,2516.4,0.00596338]
[1724996396387,9.65131453,2516.5,2516.4,0.00596338]
[1724996396694,3.60515,2516.5,2516.4,0.00596338]
[1724996397397,6.19585566,2516.5,2516.4,0.00596338]
[1724996397579,2.98805566,2516.5,2516.4,0.00596338]
[1724996397785,0.39735,2516.5,2516.4,0.00596338]
[1724996397992,2.98805566,2516.5,2516.4,0.00596338]
[1724996398291,0.39735,2516.5,2516.4,0.00596338]
[1724996398586,2.98805566,2516.5,2516.4,0.00596338]
[1724996399088,2.98805566,2516.6,2516.4,0.00596338]
[1724996399484,2.07477602,2516.5,2516.4,0.00596338]
[1724996400373,2.47212602,2516.5,2516.4,0.00596338]
[1724996400677,0.39735,2516.5,2516.4,0.00596338]
[1724996401079,2.98804566,2516.6,2516.4,0.00596338]
[1724996401688,2.07443237,2516.5,2516.4,0.00596338]
[1724996402187,2.07443237,2516.5,2516.4,0.40333338]
[1724996402375,2.07443237,2516.5,2516.4,4.37693338]
[1724996403889,2.07443237,2516.5,2516.4,3.97956338]
[1724996404391,2.07443237,2516.6,2516.5,0.39735]
[1724996404577,2.07443237,2516.6,2516.5,0.77365]